bitfinex/quotes_BTCUSD_20241021
["timestamp","ask_amount","ask_price","bid_price","bid_amount"]
[1729537544892,1.70993263,67537.0,67536.0,0.001]
[1729537545093,1.70993263,67537.0,67536.0,0.002]
[1729537545301,1.70693263,67537.0,67536.0,0.001]
[1729537545529,0.023,67531.0,67530.0,0.001652]
[1729537545726,0.32003915,67531.0,67530.0,0.001652]
[1729537546591,0.17195915,67531.0,67530.0,0.001652]
[1729537546812,0.32003915,67531.0,67530.0,0.001652]
[1729537547048,0.17195915,67531.0,67530.0,0.001652]
[1729537547267,0.001,67531.0,67530.0,0.002652]
[1729537547508,0.001,67531.0,67530.0,0.248834]
[1729537547744,0.001,67531.0,67530.0,0.100752]
[1729537547962,0.001,67531.0,67530.0,0.249834]
[1729537548179,0.001,67531.0,67530.0,0.248834]
[1729537548652,0.001,67531.0,67530.0,0.100752]
[1729537548836,0.001,67531.0,67530.0,0.101752]
[1729537549056,0.02153355,67531.0,67530.0,0.100752]
[1729537549281,0.02053355,67531.0,67530.0,0.099752]
[1729537549498,1.24754,67535.0,67530.0,0.099752]
[1729537549712,0.02153355,67531.0,67530.0,0.100752]
[1729537549965,0.001,67531.0,67530.0,0.100752]
[1729537550170,0.02053355,67531.0,67530.0,0.099752]
[1729537550398,0.14895915,67534.0,67530.0,0.099752]
[1729537550600,0.001,67531.0,67530.0,0.099752]
[1729537551250,0.02153355,67531.0,67530.0,0.099752]
[1729537551497,0.001,67531.0,67530.0,0.099752]
[1729537551706,0.02153355,67531.0,67530.0,0.099752]
[1729537551910,0.14895915,67534.0,67530.0,0.099752]
[1729537552308,0.14995915,67534.0,67530.0,0.099752]
[1729537552511,0.14808,67531.0,67530.0,0.001652]
[1729537552733,0.37626314,67531.0,67530.0,0.001652]
[1729537553074,0.39673622,67531.0,67530.0,0.001652]
[1729537553756,0.39773622,67531.0,67530.0,0.002652]
[1729537553964,0.39973622,67531.0,67530.0,0.002652]
[1729537554408,1.64727622,67531.0,67530.0,0.002652]
[1729537555077,1.64827622,67531.0,67530.0,0.003652]
[1729537557405,1.69262527,67531.0,67530.0,0.003652]
[1729537557658,1.64827622,67531.0,67530.0,0.003652]
[1729537557857,1.69262594,67531.0,67530.0,0.003652]
[1729537558052,1.64827622,67531.0,67530.0,0.003652]
[1729537558639,1.69261646,67531.0,67530.0,0.003652]
[1729537559199,1.64827622,67531.0,67530.0,0.003652]
[1729537562841,1.46519622,67531.0,67530.0,0.003652]
[1729537563038,1.27001308,67531.0,67530.0,0.003652]
[1729537563248,1.27001308,67531.0,67530.0,0.325534]
[1729537563614,1.26901308,67531.0,67530.0,0.324534]
[1729537563822,1.26801308,67531.0,67530.0,0.333534]
[1729537564084,1.17401308,67531.0,67530.0,0.48349315]
[1729537564289,1.17401308,67531.0,67530.0,0.48449315]
[1729537564290,1.19194526,67531.0,67530.0,0.48449315]
[1729537564614,1.19094526,67531.0,67530.0,0.62262626]
[1729537564933,1.19094526,67531.0,67530.0,0.63262626]
[1729537565246,1.19094526,67531.0,67530.0,0.63462626]
[1729537565470,1.19094526,67531.0,67530.0,0.63262626]
[1729537565676,1.18494526,67531.0,67530.0,0.63162626]
[1729537565880,1.18494526,67531.0,67530.0,0.62162626]
[1729537566086,1.18494526,67531.0,67530.0,0.62962626]
[1729537566509,1.18494526,67531.0,67530.0,0.48249315]
[1729537566953,1.18494526,67531.0,67530.0,0.49549315]
[1729537567159,1.18494526,67531.0,67530.0,0.50949315]
[1729537568997,1.18494526,67531.0,67530.0,0.360534]
[1729537569386,1.18494526,67531.0,67530.0,1.060534]
[1729537572091,1.18494526,67531.0,67530.0,1.20949315]
[1729537572299,1.18494526,67531.0,67530.0,1.060534]
[1729537579481,0.01693218,67531.0,67530.0,1.21149315]
[1729537579684,0.01693218,67531.0,67530.0,1.32649315]
[1729537579889,0.000826,67537.0,67536.0,0.0835]
[1729537580116,0.000826,67537.0,67536.0,1.32334815]
[1729537580555,0.000826,67537.0,67536.0,1.32834815]
[1729537581338,0.000826,67537.0,67536.0,1.33634815]
[1729537581496,0.000826,67537.0,67536.0,1.34234815]
[1729537581699,0.000826,67537.0,67536.0,1.33434815]
[1729537581947,0.000826,67537.0,67536.0,1.34834815]
[1729537582099,0.000826,67537.0,67536.0,1.34234815]
[1729537582308,0.000826,67537.0,67536.0,1.35634815]
[1729537582516,0.000826,67537.0,67536.0,1.35434815]
[1729537583800,0.000826,67537.0,67536.0,1.36614117]
[1729537585225,0.000826,67537.0,67536.0,1.35434815]
[1729537585497,0.000826,67537.0,67536.0,1.36434815]
[1729537585902,0.000826,67537.0,67536.0,1.36634815]
[1729537589064,0.000826,67537.0,67536.0,1.36434815]
[1729537589470,0.000826,67537.0,67536.0,1.36634815]
[1729537592369,0.000826,67537.0,67536.0,1.36434815]
[1729537593159,0.000826,67537.0,67536.0,1.36634815]
[1729537593805,1e-06,67538.0,67537.0,0.275066]
[1729537594016,0.22351363,67563.0,67545.0,0.273049]
[1729537594252,0.22351363,67549.0,67545.0,0.59762442]
[1729537594452,0.22351363,67549.0,67545.0,0.59730815]
[1729537595084,0.000839,67556.0,67549.0,0.16504]
[1729537595300,0.000839,67556.0,67555.0,0.353827]
[1729537595564,0.000839,67556.0,67555.0,0.60058615]
[1729537595993,0.000839,67556.0,67555.0,1.30258615]
[1729537596629,0.000839,67556.0,67555.0,1.30058615]
[1729537597684,0.000839,67556.0,67555.0,1.32636801]
[1729537597890,0.000839,67556.0,67555.0,1.46132716]
[1729537598096,0.000839,67556.0,67555.0,1.48932716]
[1729537598314,0.000839,67556.0,67555.0,1.4675453]
[1729537598518,0.000839,67556.0,67555.0,1.4395453]
[1729537598720,0.000839,67556.0,67555.0,1.30458615]
[1729537600027,0.000839,67556.0,67555.0,1.31858615]
[1729537600473,0.000839,67556.0,67555.0,1.29058615]
[1729537600688,0.000839,67556.0,67555.0,1.30458615]
[1729537600909,0.000839,67556.0,67555.0,1.4675453]
[1729537601112,0.000839,67556.0,67555.0,1.4535453]
[1729537601320,0.000839,67556.0,67555.0,1.4395453]
[1729537601518,0.000839,67556.0,67555.0,1.4675453]
[1729537602885,0.000839,67556.0,67555.0,1.4535453]
[1729537603351,0.000839,67556.0,67555.0,1.4665453]
[1729537603788,0.000839,67556.0,67555.0,1.4535453]
[1729537604283,0.000839,67556.0,67555.0,1.4675453]
[1729537604437,0.000839,67556.0,67555.0,0.7675453]
[1729537605059,0.000839,67556.0,67555.0,0.7535453]
[1729537606278,0.000839,67556.0,67555.0,0.7555453]
[1729537606454,0.000839,67556.0,67555.0,0.7695453]
[1729537606674,0.000839,67556.0,67555.0,0.7675453]
[1729537606874,0.000839,67556.0,67555.0,0.7695453]
[1729537607323,0.000839,67556.0,67555.0,0.7675453]
[1729537607581,0.000839,67556.0,67555.0,1.4395453]
[1729537607941,0.000839,67556.0,67555.0,1.4675453]
[1729537608353,0.000839,67556.0,67555.0,1.4395453]
[1729537608556,0.000839,67556.0,67555.0,1.4535453]
[1729537610173,0.000839,67556.0,67555.0,1.4675453]
[1729537610401,0.000839,67556.0,67555.0,1.4535453]
[1729537610604,0.000839,67556.0,67555.0,1.4395453]
[1729537611008,0.000839,67556.0,67555.0,1.4675453]
[1729537611214,0.000839,67556.0,67555.0,1.4535453]
[1729537611435,0.000839,67556.0,67555.0,1.4395453]
[1729537611760,0.000839,67556.0,67555.0,1.4675453]
[1729537611892,0.000839,67556.0,67555.0,1.4535453]
[1729537612863,0.22342503,67567.0,67566.0,0.005]
[1729537613067,0.22342503,67567.0,67566.0,0.953003]
[1729537613276,0.0176234,67572.0,67571.0,0.147992]
[1729537614458,0.0176234,67572.0,67571.0,0.153992]
[1729537614820,0.0176234,67572.0,67571.0,0.151992]
[1729537615213,0.0176234,67572.0,67571.0,0.158992]
[1729537615935,0.0176234,67572.0,67571.0,0.154992]
[1729537616351,0.0176234,67572.0,67571.0,0.852992]
[1729537616762,0.0176234,67572.0,67571.0,0.854992]
[1729537617386,0.0176234,67572.0,67571.0,0.862992]
[1729537617667,0.0176234,67572.0,67571.0,0.847992]
[1729537617885,0.0176234,67572.0,67571.0,0.854992]
[1729537618545,0.0176234,67572.0,67571.0,0.863992]
[1729537619559,0.0176234,67572.0,67571.0,0.163992]
[1729537620587,0.35318255,67572.0,67571.0,0.016]
[1729537620795,0.36579811,67572.0,67571.0,0.016]
[1729537621553,0.20683896,67572.0,67571.0,0.016]
[1729537621753,0.20683896,67572.0,67571.0,0.163992]
[1729537621754,0.03023896,67572.0,67571.0,0.163992]
[1729537622020,0.0226234,67572.0,67571.0,0.163992]
[1729537622339,0.0176234,67572.0,67571.0,0.156992]
[1729537622544,0.0176234,67572.0,67571.0,0.160992]
[1729537622788,0.0176234,67572.0,67571.0,0.151992]
[1729537623233,0.0176234,67572.0,67570.0,0.147992]
[1729537623439,0.0196234,67572.0,67571.0,0.147992]
[1729537623658,0.0196234,67572.0,67571.0,0.149992]
[1729537623993,0.0176234,67572.0,67571.0,0.149992]
[1729537624393,0.0176234,67572.0,67571.0,0.150992]
[1729537624670,0.0176234,67572.0,67571.0,0.147992]
[1729537624834,0.0226234,67572.0,67571.0,0.147992]
[1729537625008,0.0176234,67572.0,67571.0,0.147992]
[1729537627005,0.0176234,67572.0,67571.0,0.150992]
[1729537627224,0.0184494,67572.0,67571.0,0.003]
[1729537627434,0.03100052,67572.0,67571.0,0.150992]
[1729537627633,0.0184494,67572.0,67571.0,0.150992]
[1729537631085,0.0184494,67572.0,67571.0,0.003]
[1729537631805,0.25060855,67572.0,67571.0,0.003]
[1729537632008,0.26315967,67572.0,67571.0,0.003]
[1729537632336,0.26315967,67572.0,67571.0,0.002]
[1729537632549,0.43414967,67572.0,67571.0,0.002]
[1729537632755,0.59429606,67572.0,67571.0,0.002]
[1729537632972,0.43630606,67572.0,67571.0,0.002]
[1729537633213,0.17995967,67572.0,67571.0,0.002]
[1729537633526,0.17995967,67572.0,67570.0,0.147993]
[1729537633660,0.14895915,67571.0,67568.0,0.147999]
[1729537633883,0.16152651,67571.0,67567.0,0.001652]
[1729537634120,0.16152651,67571.0,67567.0,0.149652]
[1729537634768,0.16152651,67571.0,67567.0,0.001652]
[1729537634969,0.16152651,67571.0,67568.0,0.147998]
[1729537635213,0.16352651,67571.0,67568.0,0.147998]
[1729537636051,0.16352651,67571.0,67567.0,0.149653]
[1729537636236,0.16352651,67571.0,67568.0,0.147998]
[1729537636451,0.16152651,67571.0,67568.0,0.147998]
[1729537636659,0.16252651,67571.0,67568.0,0.147998]
[1729537636867,0.16352651,67571.0,67568.0,0.147998]
[1729537637347,0.16252651,67571.0,67567.0,0.001652]
[1729537637552,0.16252651,67571.0,67568.0,0.147998]
[1729537637762,0.16252651,67571.0,67569.0,0.147996]
[1729537637982,0.16452651,67571.0,67570.0,0.147994]
[1729537638180,0.16252651,67571.0,67570.0,0.147994]
[1729537638616,0.16352651,67571.0,67570.0,0.147994]
[1729537638835,0.16252651,67571.0,67570.0,0.147994]
[1729537639085,0.16352651,67571.0,67570.0,0.147994]
[1729537639326,0.01456736,67571.0,67570.0,0.147994]
[1729537639553,0.01456736,67571.0,67570.0,0.318094]
[1729537639554,0.01356736,67571.0,67570.0,0.318094]
[1729537639779,0.001,67571.0,67570.0,0.318094]
[1729537640075,0.002,67571.0,67570.0,0.318094]
[1729537640284,0.002,67571.0,67570.0,0.328094]
[1729537640285,0.001,67571.0,67570.0,0.328094]
[1729537640708,0.0184494,67572.0,67571.0,0.147992]
[1729537641116,0.0184494,67572.0,67571.0,0.152992]
[1729537641537,0.0184494,67572.0,67571.0,0.852992]
[1729537642388,0.0184494,67572.0,67571.0,0.864992]
[1729537642595,0.0184494,67572.0,67571.0,0.164992]
[1729537643069,0.0184494,67572.0,67571.0,0.174992]
[1729537644937,0.0184494,67572.0,67571.0,0.874992]
[1729537646393,0.0184494,67572.0,67571.0,0.174992]
[1729537649397,0.0184494,67572.0,67571.0,0.874992]
[1729537650357,0.0184494,67572.0,67571.0,1.02395115]
[1729537651668,0.0184494,67572.0,67571.0,0.869992]
[1729537653111,0.0184494,67572.0,67571.0,0.169992]
[1729537656535,0.0184494,67572.0,67571.0,0.159992]
[1729537657170,0.0184494,67572.0,67571.0,0.147992]
[1729537657584,0.0184494,67572.0,67571.0,0.156992]
[1729537657784,0.0184494,67572.0,67571.0,0.147992]
[1729537658203,0.0184494,67572.0,67571.0,0.152992]
[1729537658420,0.0184494,67572.0,67571.0,0.160992]
[1729537658841,0.0184494,67572.0,67571.0,0.147992]
[1729537659261,0.0184494,67572.0,67571.0,0.156992]
[1729537659686,0.0184494,67572.0,67571.0,0.152992]
[1729537660119,0.0184494,67572.0,67571.0,0.156992]
[1729537660555,0.0184494,67572.0,67571.0,0.151992]
[1729537660760,0.0184494,67572.0,67571.0,0.156992]
[1729537660962,0.0184494,67572.0,67571.0,0.151992]
[1729537661380,0.0184494,67572.0,67571.0,0.154992]
[1729537661584,0.0184494,67572.0,67571.0,0.150992]
[1729537661850,0.0184494,67572.0,67571.0,0.152992]
[1729537662460,0.0184494,67572.0,67571.0,0.150992]
[1729537662674,0.0184494,67572.0,67571.0,0.152992]
[1729537663525,0.0184494,67572.0,67571.0,0.005]
[1729537663745,0.31539855,67572.0,67571.0,0.005]
[1729537663950,0.41909855,67572.0,67571.0,0.005]
[1729537664169,0.43169619,67572.0,67571.0,0.005]
[1729537664394,0.4455648,67572.0,67571.0,0.005]
[1729537664599,0.2995748,67572.0,67567.0,0.001652]
[1729537664810,0.33382076,67571.0,67567.0,0.001652]
[1729537665019,0.17195915,67571.0,67567.0,0.001652]
[1729537665227,0.023,67568.0,67567.0,0.001652]
[1729537665454,0.17195915,67568.0,67567.0,0.001652]
[1729537665675,0.18445711,67568.0,67567.0,0.001652]
[1729537665881,0.18445711,67568.0,67567.0,0.002652]
[1729537666296,0.18445711,67568.0,67567.0,0.001652]
[1729537667174,0.51085611,67568.0,67567.0,0.001652]
[1729537667393,0.51085611,67568.0,67567.0,0.002652]
[1729537667614,0.51285611,67568.0,67567.0,0.003652]
[1729537667823,0.52671275,67568.0,67567.0,0.003652]
[1729537668265,0.52671275,67568.0,67567.0,0.002652]
[1729537668470,0.51285611,67568.0,67567.0,0.002652]
[1729537668673,0.51585611,67568.0,67567.0,0.002652]
[1729537668881,0.51385611,67568.0,67567.0,0.002652]
[1729537669061,0.36785711,67568.0,67567.0,0.002652]
[1729537669197,0.51585611,67568.0,67567.0,0.002652]
[1729537669419,0.51385611,67568.0,67567.0,0.002652]
[1729537670656,0.36585711,67568.0,67567.0,0.002652]
[1729537671292,0.51385611,67568.0,67567.0,0.002652]
[1729537671496,0.36585711,67568.0,67567.0,0.002652]
[1729537671695,0.51385611,67568.0,67567.0,0.002652]
[1729537672663,0.51585611,67568.0,67567.0,0.002652]
[1729537674148,0.36585711,67568.0,67567.0,0.002652]
[1729537678701,0.51385611,67568.0,67567.0,0.002652]
[1729537678875,0.51585611,67568.0,67567.0,0.002652]
[1729537679075,0.52385611,67568.0,67567.0,0.002652]
[1729537679298,0.53769865,67568.0,67567.0,0.002652]
[1729537679517,0.53969865,67568.0,67567.0,0.002652]
[1729537679851,0.53769865,67568.0,67567.0,0.001652]
[1729537680483,0.53269865,67568.0,67567.0,0.001652]
[1729537680708,0.53469865,67568.0,67567.0,0.002652]
[1729537680909,0.53469865,67568.0,67567.0,0.003652]
[1729537680910,0.21829965,67568.0,67567.0,0.003652]
[1729537681127,0.20445711,67568.0,67567.0,0.003652]
[1729537681330,0.20245711,67568.0,67567.0,0.002652]
[1729537682632,0.21445711,67568.0,67567.0,0.003652]
[1729537684206,0.36245611,67568.0,67567.0,0.003652]
[1729537684503,0.36328211,67568.0,67567.0,0.003652]
[1729537685245,0.21528311,67568.0,67567.0,0.003652]
[1729537685943,0.36328211,67568.0,67567.0,0.003652]
[1729537686158,0.21528311,67568.0,67567.0,0.003652]
[1729537687122,0.20728311,67568.0,67567.0,0.002652]
[1729537687354,0.34328211,67568.0,67567.0,0.001652]
[1729537687584,0.35128211,67568.0,67567.0,0.002652]
[1729537688467,0.34328211,67568.0,67567.0,0.001652]
[1729537688712,0.35028211,67568.0,67567.0,0.002652]
[1729537689182,0.34928211,67568.0,67567.0,0.001652]
[1729537689855,0.35528211,67568.0,67567.0,0.002652]
[1729537696165,0.40153203,67568.0,67567.0,0.002652]
[1729537697105,0.35528211,67568.0,67567.0,0.002652]
[1729537698057,0.34528211,67568.0,67567.0,0.002652]
[1729537698283,0.40158642,67568.0,67567.0,0.002652]
[1729537701895,0.40358642,67568.0,67567.0,0.002652]
[1729537702161,0.61904541,67568.0,67567.0,0.002652]
[1729537702417,0.73845745,67568.0,67567.0,0.002652]
[1729537702639,0.82718265,67568.0,67567.0,0.002652]
[1729537703359,0.73845745,67568.0,67567.0,0.002652]
[1729537703613,0.82118617,67568.0,67567.0,0.002652]
[1729537703822,0.82718617,67568.0,67567.0,0.002652]
[1729537704084,0.88129615,67568.0,67567.0,0.003652]
[1729537704283,0.79256743,67568.0,67567.0,0.003652]
[1729537704678,0.78456743,67568.0,67567.0,0.002652]
[1729537704936,0.78456743,67568.0,67567.0,0.003652]
[1729537705149,0.79756743,67568.0,67567.0,0.003652]
[1729537705360,0.69835484,67568.0,67567.0,0.003652]
[1729537705570,0.5395964,67568.0,67567.0,0.003652]
[1729537706005,0.58396643,67568.0,67567.0,0.003652]
[1729537706474,0.5395964,67568.0,67567.0,0.003652]
[1729537706695,0.58397543,67568.0,67567.0,0.003652]
[1729537706924,0.60615145,67568.0,67567.0,0.003652]
[1729537707396,0.71711707,67568.0,67567.0,0.003652]
[1729537707603,0.55324468,67568.0,67567.0,0.003652]
[1729537707806,0.61983287,67568.0,67567.0,0.003652]
[1729537708201,0.71716685,67568.0,67567.0,0.003652]
[1729537708411,0.71516685,67568.0,67567.0,0.003652]
[1729537708633,0.80390692,67568.0,67567.0,0.003652]
[1729537708835,0.80590692,67568.0,67567.0,0.003652]
[1729537709040,0.80597906,67568.0,67567.0,0.003652]
[1729537709250,0.71716685,67568.0,67567.0,0.003652]
[1729537709862,0.62466617,67568.0,67567.0,0.003652]
[1729537710080,0.62466763,67568.0,67567.0,0.003652]
[1729537710489,0.71351019,67568.0,67567.0,0.003652]
[1729537710718,0.62466763,67568.0,67567.0,0.003652]
[1729537712239,0.4606964,67568.0,67567.0,0.003652]
[1729537712745,0.62467326,67568.0,67567.0,0.003652]
[1729537713874,0.62667326,67568.0,67567.0,0.003652]
[1729537714437,0.52732928,67568.0,67567.0,0.003652]
[1729537714890,0.52732674,67568.0,67567.0,0.003652]
[1729537715403,0.71351432,67568.0,67567.0,0.003652]
[1729537715630,0.62467449,67568.0,67567.0,0.003652]
[1729537716517,0.62667449,67568.0,67567.0,0.003652]
[1729537719327,0.4606964,67568.0,67567.0,0.003652]
[1729537719572,0.52731999,67568.0,67567.0,0.003652]
[1729537719771,0.4606964,67568.0,67567.0,0.003652]
[1729537719973,0.52731999,67568.0,67567.0,0.003652]
[1729537720188,0.4606964,67568.0,67567.0,0.003652]
[1729537720597,0.62465953,67568.0,67567.0,0.003652]
[1729537720803,0.4606964,67568.0,67567.0,0.003652]
[1729537721009,0.62466016,67568.0,67567.0,0.003652]
[1729537721208,0.46051827,67568.0,67567.0,0.003652]
[1729537721586,0.6244812,67568.0,67567.0,0.003652]
[1729537723056,0.46051827,67568.0,67567.0,0.003652]
[1729537723189,0.45644411,67568.0,67567.0,0.003652]
[1729537723436,0.70924531,67568.0,67567.0,0.003652]
[1729537723861,0.62040992,67568.0,67567.0,0.003652]
[1729537724359,0.70924531,67568.0,67567.0,0.003652]
[1729537724808,0.45644411,67568.0,67567.0,0.003652]
[1729537725523,0.45844411,67568.0,67567.0,0.003652]
[1729537725764,0.71124925,67568.0,67567.0,0.003652]
[1729537725966,0.71125402,67568.0,67567.0,0.003652]
[1729537726208,0.62241485,67568.0,67567.0,0.003652]
[1729537726449,0.28562324,67568.0,67567.0,0.003652]
[1729537726694,0.23931893,67568.0,67567.0,0.003652]
[1729537727789,0.26231893,67568.0,67567.0,0.003652]
[1729537728085,0.22731893,67568.0,67567.0,0.001652]
[1729537728307,0.24031893,67568.0,67567.0,0.001652]
[1729537728528,0.24231893,67568.0,67567.0,0.001652]
[1729537730877,0.39031793,67568.0,67567.0,0.001652]
[1729537731273,0.4365852,67568.0,67567.0,0.001652]
[1729537732243,0.39047522,67568.0,67567.0,0.001652]
[1729537732465,0.25889061,67568.0,67567.0,0.096752]
[1729537732705,0.0142498,67568.0,67567.0,0.324853]
[1729537732945,0.005826,67568.0,67567.0,0.334853]
[1729537733179,0.005826,67568.0,67567.0,0.434853]
[1729537733415,0.005826,67568.0,67567.0,1.134853]
[1729537733654,0.003826,67568.0,67567.0,1.134853]
[1729537733887,0.003826,67568.0,67567.0,0.58381215]
[1729537734095,0.004826,67568.0,67567.0,0.59781215]
[1729537734311,0.004826,67568.0,67567.0,0.58381215]
[1729537734518,0.003826,67568.0,67567.0,0.58381215]
[1729537734744,0.001826,67568.0,67567.0,0.59781215]
[1729537734960,0.002826,67568.0,67567.0,0.60981215]
[1729537735174,0.002826,67568.0,67567.0,0.460853]
[1729537735402,0.001826,67568.0,67567.0,0.448853]
[1729537735866,0.002826,67568.0,67567.0,0.462853]
[1729537736760,0.002826,67568.0,67567.0,1.162853]
[1729537738661,0.0184494,67572.0,67571.0,0.257992]
[1729537738894,0.0184494,67572.0,67571.0,1.129992]
[1729537739109,0.0184494,67572.0,67571.0,1.27895115]
[1729537739428,0.000839,67573.0,67572.0,0.43499]
[1729537739782,0.000839,67574.0,67573.0,0.442688]
[1729537740000,0.000839,67574.0,67573.0,0.7406063]
[1729537740424,0.000839,67574.0,67573.0,0.58664715]
[1729537740678,0.000839,67574.0,67573.0,0.432688]
[1729537740973,0.000839,67574.0,67573.0,1.132688]
[1729537741179,0.000839,67574.0,67573.0,1.027688]
[1729537741625,0.001839,67574.0,67573.0,1.039688]
[1729537741845,0.001839,67574.0,67573.0,1.048688]
[1729537742306,0.000839,67574.0,67573.0,1.14217873]
[1729537742526,0.000839,67574.0,67573.0,1.15117873]
[1729537743006,0.000839,67574.0,67573.0,1.036688]
[1729537743668,0.000839,67574.0,67573.0,1.046688]
[1729537745320,0.000839,67574.0,67573.0,1.041688]
[1729537745560,0.000839,67574.0,67573.0,1.046688]
[1729537746688,0.000839,67574.0,67573.0,0.346688]
[1729537747607,0.000839,67574.0,67573.0,0.327688]
[1729537747835,0.000839,67574.0,67573.0,0.452688]
[1729537748329,0.000839,67574.0,67573.0,1.152688]
[1729537749898,0.000839,67574.0,67573.0,0.347688]
[1729537750147,0.000839,67574.0,67573.0,0.337688]
[1729537750622,0.000839,67574.0,67573.0,0.1897]
[1729537750849,0.29778315,67574.0,67573.0,0.02]
[1729537751334,0.32824928,67574.0,67573.0,0.02]
[1729537751560,0.32824928,67574.0,67573.0,0.011]
[1729537752056,0.023,67573.0,67564.0,0.148006]
[1729537752296,0.29695015,67572.0,67562.0,0.22351363]
[1729537752499,0.3043349,67572.0,67562.0,0.22351363]
[1729537752734,0.1563439,67572.0,67564.0,0.148006]
[1729537752965,0.1563439,67572.0,67562.0,0.22351363]
[1729537753180,0.1563439,67572.0,67565.0,0.148005]
[1729537753692,0.1563439,67572.0,67562.0,0.22351363]
[1729537753939,0.1563439,67572.0,67564.0,0.148006]
[1729537754178,0.1563439,67572.0,67562.0,0.22351363]
[1729537754179,0.1563439,67572.0,67565.0,0.148005]
[1729537754408,0.1593439,67572.0,67565.0,0.148005]
[1729537754892,0.1593439,67572.0,67563.0,0.296016]
[1729537755107,0.1593439,67572.0,67566.0,0.148002]
[1729537755541,0.1593439,67572.0,67571.0,0.22351363]
[1729537755757,0.003,67572.0,67571.0,0.147992]
[1729537755976,0.003,67572.0,67570.0,0.147994]
[1729537756191,0.14895915,67571.0,67566.0,0.148002]
[1729537756403,0.14895915,67571.0,67568.0,0.147998]
[1729537756614,0.14895915,67571.0,67567.0,0.149652]
[1729537756821,0.14895915,67571.0,67567.0,0.001652]
[1729537757032,0.14895915,67571.0,67568.0,0.147996]
[1729537757713,0.14995915,67571.0,67568.0,0.147996]
[1729537757903,0.14995915,67571.0,67570.0,0.147994]
[1729537758961,0.14995915,67571.0,67568.0,0.295998]
[1729537759168,0.14995915,67571.0,67569.0,0.147996]
[1729537759439,0.14995915,67571.0,67570.0,0.147994]
[1729537759605,0.14895915,67571.0,67570.0,0.147994]
[1729537760032,0.14995915,67571.0,67570.0,0.147994]
[1729537760873,0.001,67571.0,67570.0,0.147994]
[1729537761344,0.001,67571.0,67570.0,0.230494]
[1729537762630,0.001,67571.0,67570.0,0.238494]
[1729537763367,0.000839,67574.0,67573.0,0.147988]
[1729537764873,0.000839,67574.0,67573.0,0.154988]
[1729537765076,0.000839,67574.0,67573.0,0.160988]
[1729537767880,0.000839,67574.0,67573.0,0.4639529]
[1729537768312,0.000839,67574.0,67573.0,0.71291205]
[1729537768528,0.000839,67574.0,67573.0,0.71791205]
[1729537769039,0.000839,67574.0,67573.0,0.73996305]
[1729537769890,0.000839,67574.0,67573.0,0.73396305]
[1729537770118,0.000839,67574.0,67573.0,0.74296305]
[1729537770332,0.000839,67574.0,67573.0,1.44296305]
[1729537770545,0.000839,67574.0,67573.0,1.42696305]
[1729537770989,0.000839,67574.0,67573.0,1.45496305]
[1729537771186,0.000839,67574.0,67573.0,1.31004715]
[1729537774521,0.000839,67574.0,67573.0,1.161088]
[1729537774742,0.000839,67574.0,67573.0,0.446088]
[1729537774963,0.000839,67574.0,67573.0,0.456088]
[1729537775381,0.000839,67574.0,67573.0,0.446088]
[1729537775852,0.000839,67574.0,67573.0,0.418088]
[1729537776397,0.000839,67574.0,67573.0,0.426088]
[1729537776860,0.000839,67574.0,67573.0,0.418088]
[1729537777090,0.000839,67574.0,67573.0,0.425088]
[1729537777309,0.000839,67574.0,67573.0,0.430088]
[1729537777534,0.000839,67574.0,67573.0,0.423088]
[1729537777769,0.000839,67574.0,67573.0,0.440088]
[1729537778196,0.000839,67574.0,67573.0,0.44174]
[1729537778431,0.000839,67574.0,67573.0,0.43674]
[1729537778654,0.000839,67574.0,67573.0,0.44174]
[1729537782260,0.000839,67574.0,67573.0,0.5807101]
[1729537782895,0.000839,67574.0,67573.0,0.5857101]
[1729537783299,0.000839,67574.0,67573.0,0.45174]
[1729537784161,0.000839,67574.0,67573.0,1.15174]
[1729537787595,0.000839,67574.0,67573.0,0.45174]
[1729537788823,0.000839,67574.0,67573.0,0.43674]
[1729537795111,0.000839,67574.0,67573.0,0.16664]
[1729537798610,0.22194263,67584.0,67573.0,0.018652]
[1729537798820,0.37090178,67584.0,67583.0,0.147966]
[1729537799450,0.14895915,67584.0,67583.0,0.147966]
[1729537799920,0.14995915,67584.0,67583.0,0.147966]
[1729537801197,0.14895915,67584.0,67583.0,0.147966]
[1729537801411,0.14995915,67584.0,67583.0,0.147966]
[1729537801636,0.15095915,67584.0,67583.0,0.147966]
[1729537802254,0.14895915,67584.0,67583.0,0.147966]
[1729537802468,0.14995915,67584.0,67583.0,0.147966]
[1729537803143,0.14895915,67584.0,67583.0,0.148966]
[1729537804566,0.14895915,67584.0,67583.0,0.147966]
[1729537804789,0.27962361,67596.0,67589.0,0.295903]
[1729537805073,0.27962361,67596.0,67583.0,0.002]
[1729537805074,0.15544582,67595.0,67591.0,0.147947]
[1729537805284,0.21555366,67595.0,67591.0,0.147947]
[1729537805588,0.06010784,67594.0,67591.0,0.147947]
[1729537805780,0.195192,67593.0,67591.0,0.147947]
[1729537805970,0.04623285,67592.0,67590.0,0.14795]
[1729537806186,0.14895915,67591.0,67590.0,0.14795]
[1729537806633,0.15544582,67591.0,67590.0,0.14795]
[1729537806888,0.15544582,67591.0,67589.0,0.001]
[1729537807340,0.15544582,67591.0,67588.0,0.147953]
[1729537807791,0.15544582,67591.0,67585.0,0.14796]
[1729537808009,0.15544582,67591.0,67577.0,0.305955]
[1729537808010,0.046253,67590.0,67579.0,0.295947]
[1729537808256,0.14895915,67589.0,67582.0,0.147968]
[1729537808512,0.023,67585.0,67573.0,0.001652]
[1729537808766,0.023,67583.0,67575.0,0.22351363]
[1729537809000,0.023,67581.0,67576.0,0.14798]
[1729537809234,0.14895915,67580.0,67573.0,0.001652]
[1729537809478,0.14895915,67580.0,67574.0,0.147984]
[1729537809691,0.14895915,67580.0,67574.0,0.147985]
[1729537810532,0.14895915,67580.0,67574.0,0.147984]
[1729537811206,0.14895915,67580.0,67573.0,0.001652]
[1729537811675,0.14995915,67580.0,67574.0,0.147985]
[1729537811894,0.14995915,67580.0,67573.0,0.001652]